[Event "TUR-ch U13-18 Open 2023"]
[Site "Antalya"]
[Date "2023.01.23"]
[Round "3"]
[White "Binboga, Yaman"]
[Black "Dirikolu, Deniz"]
[Result "0-1"]
[ECO "C47"]
[WhiteElo "1641"]
[BlackElo "1868"]
[Annotator "NA RC COMBH"]
[PlyCount "64"]
[EventDate "2023.01.17"]
[EventType "swiss"]
[EventCountry "TUR"]
[SourceTitle "playchess.com"]
[Source "ChessBase"]
[SourceQuality "1"]
[TimeControl "5400+30"]

1. e4 {[%emt 0:01:00]} e5 {[%emt 0:01:00]} 2. Nf3 {[%emt 0:00:30]} Nc6 {[%emt 0:00:30]} 3. d4 {[%emt 0:00:30]} exd4 {[%emt 0:00:30]} 4. Nxd4 {[%emt 0:00:30]} Nf6 {[%emt 0:00:00]} 5. Nc3 {[%emt 0:00:00]} Bb4 {[%emt 0:00:00]} 6. Nxc6 {[%emt 0:00:00]} bxc6 {[%emt 0:00:00]} 7. Bd3 {[%emt 0:00:00]} d5 {[%emt 0:00:00]} 8. exd5 {[%emt 0:00:00]} O-O {[%emt 0:00:00]} 9. O-O {[%emt 0:00:30]} cxd5 {[%emt 0:00:00]} 10. Bg5 {[%emt 0:00:30]} c6 {[%emt 0:00:00]} 11. h3 {[%emt 0:00:30]} h6 {[%emt 0:00:00]} 12. Bh4 {[%emt 0:01:30]} Bxc3 {[%emt 0:00:00]} 13. bxc3 {[%emt 0:00:30]} c5 {[%emt 0:00:00]} 14. Qf3 {[%emt 0:08:30]} g5 {[%emt 0:00:00]} 15. Bg3 {[%emt 0:00:30]} c4 {[%emt 0:00:00] [#]} 16. Be5 $2 {[%emt 0:09:30]} (16. Bxc4 $1 $16 {stays on course.} g4 17. hxg4 Bxg4 18. Qf4 dxc4 19. Bh4) 16... Nd7 {[%emt 0:02:30]} 17. Bd6 {[%emt 0:04:30]} cxd3 {[%emt 0:00:30]} 18. Bxf8 {[%emt 0:00:30]} Nxf8 {[%emt 0:00:30]} 19. cxd3 {[%emt 0:00:30]} Ng6 {[%emt 0:00:30]} 20. Rfe1 {[%emt 0:05:30]} Be6 {[%emt 0:03:30]} 21. Rab1 {[%emt 0:02:30]} Rb8 {[%emt 0:00:30]} 22. Rxb8 {[%emt 0:04:30]} Qxb8 {[%emt 0:00:00]} 23. Qf6 {[%emt 0:00:30]} Qb6 {[%emt 0:03:00]} 24. g3 {[%emt 0:04:30]} Kh7 {[%emt 0:05:30]} (24... Bxh3 $2 25. Re8+ Nf8 26. Qe7 $18) 25. Re3 {[%emt 0:17:30]} Qb7 {[%emt 0:09:30]} (25... Bxh3 $2 {leads to mate.} 26. Qxf7+ Kh8 27. Re8+) 26. Re1 {[%emt 0:08:30]} (26. h4 $17 {was worth a try.}) 26... Bxh3 {[%emt 0:01:30]} 27. Qd4 {[%emt 0:04:30]} Be6 {[%emt 0:00:30]} 28. c4 {[%emt 0:04:30]} Qb4 {[%emt 0:24:30]} 29. Re3 {[%emt 0:10:23]} dxc4 {[%emt 0:00:30]} 30. Qxa7 $2 {[%emt 0:01:10]} (30. dxc4 Qb1+ 31. Kh2) 30... Qb1+ $19 {[%emt 0:01:30]} 31. Kh2 {[%emt 0:00:30]} Bd5 {[%emt 0:00:00]} 32. Rf3 {[%emt 0:01:19]} Ne5 {[%emt 0:00:00]} ({And not} 32... Bxf3 33. Qxf7+ Kh8 34. Qf6+ Kh7 35. Qf7+ Kh8 36. Qf6+ Kh7 37. Qf7+ $11) 0-1

[Event "TUR-ch U13-18 Open 2023"]
[Site "Antalya"]
[Date "2023.01.23"]
[Round "3"]
[White "Sinay, Ahmet"]
[Black "Danaci, Ege"]
[Result "1/2-1/2"]
[ECO "E67"]
[WhiteElo "1612"]
[BlackElo "2088"]
[Annotator "TA"]
[PlyCount "118"]
[EventDate "2023.01.17"]
[EventType "swiss"]
[EventCountry "TUR"]
[SourceTitle "playchess.com"]
[Source "ChessBase"]
[SourceQuality "1"]
[TimeControl "5400+30"]

{[%evp 21,118,0,0,0,-7,-29,-26,-25,-30,-30,-24,-38,0,-40,0,0,0,0,0,-6,33,0,0,0,0,0,-8,-16,-10,-12,0,0,0,0,0,0,0,0,0,0,0,0,7,-60,0,0,0,0,0,0,0,0,0,0,0,0,0,0,0,0,0,0,0,-8,0,0,0,0,0,0,0,0,0,0,0,0,0,0,0,0,0,0,0,0,0,0,0,0,0,0,0,0,0,-8,0,-8,-8,-8,-8]} 1. d4 {[%emt 0:01:00]} Nf6 {[%emt 0:01:00]} 2. c4 {[%emt 0:00:00]} g6 {[%emt 0:00:30]} 3. g3 {[%emt 0:00:00]} Bg7 {[%emt 0:00:30]} 4. Bg2 {[%emt 0:00:00]} O-O {[%emt 0:00:30]} 5. Nc3 {[%emt 0:00:00]} d6 {[%emt 0:01:30]} 6. Nf3 {[%emt 0:00:30]} Nbd7 {[%emt 0:00:30]} 7. O-O {[%emt 0:00:30]} e5 {[%emt 0:00:30]} 8. dxe5 {[%emt 0:01:30]} dxe5 {[%emt 0:01:30]} 9. Bg5 {[%emt 0:02:30]} h6 {[%emt 0:02:30]} 10. Bxf6 {[%emt 0:00:30]} Bxf6 {[%emt 0:01:30]} 11. Qd2 {[%emt 0:03:30]} Bg7 {[%emt 0:01:30]} 12. Rfd1 {[%emt 0:00:30] E67: King's Indian: Fianchetto: 6...Nbd7.} c6 {[%emt 0:08:30]} 13. Bh3 {[%emt 0:05:30][%cal Rh3d7] [#]} (13. Ne4 $5 {[%cal Re4c5]}) 13... Qe7 {[%emt 0:01:30]} 14. e4 {[%emt 0:19:30][%cal Rh3d7] [#] Black has an edge.} Nc5 $146 {[%emt 0:08:30][%cal Bd7c5,Bc5e6,Be6d4][%mdl 32]} ({Predecessor:} 14... Nb6 15. Bxc8 Raxc8 16. b3 Rcd8 17. Qe3 Qa3 18. Qe2 Qa5 19. Qc2 Bf6 20. Rxd8 Rxd8 {1-0 Bartha,S (2209)-Biro,D (2182) HUN-chT2 Charousek 1112 2011 (5)}) 15. Bxc8 {[%emt 0:03:30]} Raxc8 {[%emt 0:00:00]} 16. Qd6 {[%emt 0:00:30]} Rfe8 {[%emt 0:01:00]} 17. Rd2 {[%emt 0:16:30]} Ne6 {[%emt 0:01:30]} 18. Qxe7 {[%emt 0:02:30]} Rxe7 {[%emt 0:00:30]} 19. Rad1 {[%emt 0:00:30]} Nd4 {[%emt 0:00:30]} 20. Kg2 {[%emt 0:00:30]} a6 {[%emt 0:00:30]} 21. Ne2 {[%emt 0:00:30]} Ne6 {[%emt 0:00:30]} 22. Nc3 {[%emt 0:00:30]} b5 {[%emt 0:00:30] Inhibits Na4.} 23. cxb5 {[%emt 0:00:30]} axb5 {[%emt 0:00:30]} 24. a3 {[%emt 0:00:30]} h5 {[%emt 0:00:30]} 25. Rc2 {[%emt 0:00:30][%cal Oc3b5]} Ree8 {[%emt 0:00:30]} 26. Ne2 {[%emt 0:00:30]} g5 {[%emt 0:00:30]} 27. Rd6 {[%emt 0:00:30]} g4 {[%emt 0:00:30]} 28. Nh4 {[%emt 0:00:30][%cal Bf3h4,Bh4f5,Bf5d6][%mdl 32]} Red8 {[%emt 0:00:30]} 29. Nf5 {[%emt 0:33:50] [#] Black must now prevent Ne7+.} Rxd6 {[%emt 0:42:30]} 30. Nxd6 {[%emt 0:00:58] A dynamic duo of knights.} Rc7 {[%emt 0:00:30]} 31. Nf5 {[%emt 0:01:13][%cal Oc2c6]} Bf8 {[%emt 0:00:30]} 32. Rd2 {[%emt 0:00:33]} (32. h3 $11) 32... Nc5 {[%emt 0:02:30]} ({Black should play} 32... f6 $15) 33. Nc3 $11 {[%emt 0:00:30] The position is equal.} Rd7 {[%emt 0:00:30]} 34. Rxd7 {[%emt 0:00:30]} Nxd7 {[%emt 0:00:00][%mdl 4096] Endgame KBN-KNN} 35. f3 {[%emt 0:00:00]} gxf3+ {[%emt 0:05:53]} 36. Kxf3 {[%emt 0:00:04]} Nb6 {[%emt 0:00:30]} 37. Ne3 {[%emt 0:00:30]} Bc5 {[%emt 0:00:30]} 38. Ncd1 {[%emt 0:00:30]} Bd4 {[%emt 0:00:30]} 39. Nf5 {[%emt 0:00:30]} Bc5 {[%emt 0:00:30] Inhibits Ne7+.} 40. g4 {[%emt 0:01:59]} hxg4+ {[%emt 0:03:57]} 41. Kxg4 {[%emt 0:00:30]} Nc4 {[%emt 0:00:00]} 42. h4 {[%emt 0:01:17]} Nd2 {[%emt 0:01:26]} 43. Nc3 {[%emt 0:00:30]} Bd4 {[%emt 0:00:30]} 44. Ne7+ {[%emt 0:01:12]} Kg7 {[%emt 0:06:37]} 45. Nxc6 {[%emt 0:00:05]} Bxc3 {[%emt 0:02:34]} 46. bxc3 {[%emt 0:00:55] Kf5 is the strong threat.} Nxe4 {[%emt 0:03:32] KN-KN} 47. c4 {[%emt 0:01:11]} bxc4 {[%emt 0:00:30][%cal Bb5c4,Bc4c3,Bc3c2][%mdl 32]} 48. Nxe5 {[%emt 0:00:00]} c3 {[%emt 0:00:38]} 49. Nd3 {[%emt 0:00:11]} c2 {[%emt 0:00:30][%cal Oe4f2] aiming for ...Nf2+!} 50. Nc1 {[%emt 0:00:12]} Nc5 {[%emt 0:01:35]} 51. Kf3 {[%emt 0:00:30]} f5 {[%emt 0:00:30]} 52. Ke2 {[%emt 0:00:30]} Kg6 {[%emt 0:00:30]} 53. Kd2 {[%emt 0:00:30]} Kh5 {[%emt 0:00:30]} 54. Kxc2 {[%emt 0:00:30]} Kxh4 {[%emt 0:00:30]} 55. Ne2 {[%emt 0:00:30]} Kg4 {[%emt 0:00:30]} 56. Nd4 {[%emt 0:00:00]} f4 {[%emt 0:00:00]} 57. Kd1 {[%emt 0:00:00]} f3 {[%emt 0:00:22]} 58. Nxf3 {[%emt 0:00:00]} Kxf3 {[%emt 0:00:24]} 59. a4 {[%emt 0:00:00]} Nxa4 {[%emt 0:00:02] Not much happened in this game.   Weighted Error Value: White=0.06 (flawless) /Black=0.05 (flawless)} 1/2-1/2

[Event "TUR-ch U13-18 Open 2023"]
[Site "Antalya"]
[Date "2023.01.23"]
[Round "3"]
[White "Ozcan, Alp Orcun"]
[Black "Caliskan, Seha"]
[Result "0-1"]
[ECO "C08"]
[WhiteElo "1571"]
[BlackElo "1954"]
[Annotator "TA"]
[PlyCount "74"]
[EventDate "2023.01.17"]
[EventType "swiss"]
[EventCountry "TUR"]
[SourceTitle "playchess.com"]
[Source "ChessBase"]
[SourceQuality "1"]
[TimeControl "5400+30"]

{[%evp 13,74,34,37,16,38,41,38,30,38,36,40,20,27,26,25,4,12,1,18,-10,-15,-302,-296,-305,-304,-315,-304,-301,-252,-312,-330,-285,-277,-323,-258,-365,-368,-372,-357,-364,-355,-468,-466,-460,-458,-543,-542,-537,-535,-538,-530,-542,-538,-542,-536,-536,-531,-522,-520,-523,-466,-485,-4]} 1. e4 {[%emt 0:01:00]} e6 {[%emt 0:01:00]} 2. d4 {[%emt 0:00:30]} d5 {[%emt 0:00:30]} 3. Nd2 {[%emt 0:00:30]} c5 {[%emt 0:00:30]} 4. exd5 {[%emt 0:00:30]} exd5 {[%emt 0:00:00]} 5. Ngf3 {[%emt 0:00:00]} Nc6 {[%emt 0:00:00]} 6. Bb5 {[%emt 0:00:00]} cxd4 {[%emt 0:00:00] 6...Qe7+ is becoming the main line.} 7. Qe2+ {[%emt 0:00:00]} Qe7 {[%emt 0:00:00]} 8. Nb3 {[%emt 0:03:00][%cal Of3e5] C08: French Tarrasch: 3...c5 4 exd5 exd5 sidelines.} Qxe2+ {[%emt 0:03:30]} 9. Bxe2 {[%emt 0:00:30]} Nf6 {[%emt 0:05:30]} 10. Nfxd4 {[%emt 0:00:30] White is slightly better.} (10. Nbxd4 Bc5 11. c3 O-O $11) 10... Bd6 {[%emt 0:03:30] [#]} 11. O-O $146 {[%emt 0:03:30]} ({Predecessor:} 11. Be3 O-O 12. O-O-O Be6 13. f3 Rac8 14. Kb1 Rfe8 15. Bg5 Nd7 16. Nxe6 fxe6 17. c4 {1-0 Ovetchkin,R (2534)-Sulashvili,M (2455) Champions Challenge 188th blitz 2007 (3.1)}) 11... O-O {[%emt 0:02:30]} 12. h3 {[%emt 0:01:30]} Re8 {[%emt 0:03:30]} 13. Be3 {[%emt 0:00:30]} a6 {[%emt 0:04:30][%cal Ba7a6,Ba6a5,Ba5a4][%mdl 32]} 14. Nxc6 {[%emt 0:07:30]} bxc6 {[%emt 0:00:30]} 15. Bd3 {[%emt 0:00:30]} a5 {[%emt 0:12:30]} 16. Rfe1 {[%emt 0:04:30]} a4 {[%emt 0:03:30]} 17. Nc5 {[%emt 0:03:30][%mdl 8192] [#] This costs White the game.} (17. Nd4 $11 {and White has nothing to worry.}) 17... Rxe3 $1 $19 {[%emt 0:01:30][%mdl 576] Remove Defender} 18. Rxe3 {[%emt 0:00:30]} Bxc5 {[%emt 0:00:30] This pair of bishops is nice.} 19. Re2 {[%emt 0:00:30]} g6 {[%emt 0:01:30]} 20. c3 {[%emt 0:03:30]} Ba6 {[%emt 0:03:30]} 21. Rd1 {[%emt 0:01:30]} Bxd3 {[%emt 0:01:30]} 22. Rxd3 {[%emt 0:00:30]} Rb8 {[%emt 0:00:30]} 23. c4 {[%emt 0:01:30]} Ne4 {[%emt 0:09:30] ...Nxf2 would be deadly.} ({Stronger than} 23... dxc4 24. Rc3 $17) 24. cxd5 {[%emt 0:04:30]} (24. Rf3 $142) 24... Nxf2 {[%emt 0:00:30]} 25. Rc3 {[%emt 0:09:30]} Ne4+ {[%emt 0:00:30][%mdl 64] Discovered Attack} (25... Nxh3+ $2 {loses.} 26. Kf1 Nf4 27. Re4 $17) 26. Rxc5 {[%emt 0:00:30]} Nxc5 {[%emt 0:00:30]} 27. dxc6 {[%emt 0:02:30][%mdl 4096] Endgame KRN-KR} Rc8 {[%emt 0:05:30] Black is clearly winning.} 28. Rc2 {[%emt 0:02:30]} Rxc6 {[%emt 0:00:30]} 29. b4 {[%emt 0:00:30]} axb3 {[%emt 0:00:30]} 30. axb3 {[%emt 0:00:30] [#]} Rc7 $1 {[%emt 0:00:30]} 31. Kf1 {[%emt 0:00:30]} Kf8 {[%emt 0:00:30]} 32. Rc3 {[%emt 0:00:30]} Ke7 {[%emt 0:00:30]} 33. Ke2 {[%emt 0:00:30]} Kd6 {[%emt 0:00:30]} 34. b4 {[%emt 0:00:30]} Na6 {[%emt 0:00:30]} 35. Rd3+ {[%emt 0:00:30]} Kc6 {[%emt 0:00:30]} 36. Kf3 {[%emt 0:00:30]} Kb5 {[%emt 0:00:30]} 37. Rd1 {[%emt 0:00:30] [#]} Nc5 $2 {[%emt 0:00:00][%mdl 32768] Weighted Error Value: White=0.42/Black=0.08 (flawless) . Loss on time!?} 0-1

[Event "TUR-ch U13-18 Open 2023"]
[Site "Antalya"]
[Date "2023.01.23"]
[Round "3"]
[White "Cicek, Bilal Emre"]
[Black "Demirtas, Alper"]
[Result "0-1"]
[ECO "D00"]
[WhiteElo "1538"]
[BlackElo "1990"]
[Annotator "TA"]
[PlyCount "122"]
[EventDate "2023.01.17"]
[EventType "swiss"]
[EventCountry "TUR"]
[SourceTitle "playchess.com"]
[Source "ChessBase"]
[SourceQuality "1"]
[TimeControl "5400+30"]

{[%evp 9,122,0,0,0,13,0,5,0,38,25,36,6,42,18,39,29,38,35,55,34,48,20,17,25,54,18,32,0,0,0,85,47,46,-35,-31,-66,-70,-54,-55,-71,-53,-62,-45,-61,0,-32,-29,-42,51,-38,-37,-72,-31,-131,-131,-124,-122,-145,-106,-114,-62,-66,-61,-64,-63,-70,-65,-127,-13,-101,0,0,0,0,0,0,0,0,0,0,0,0,0,0,0,0,0,0,0,0,0,0,0,0,0,-211,-211,-29962,-29957,-29974,-29975,-29974,-29975,-29973,-29974,-29981,-29982,-29982,-29983,-29983,-29982,-29983,-29981,-29980,-29981]} 1. d4 {[%emt 0:01:00]} d5 {[%emt 0:01:00]} 2. Nc3 {[%emt 0:00:30]} Nf6 {[%emt 0:00:30]} 3. Bf4 {[%emt 0:00:30]} e6 {[%emt 0:00:00]} 4. Nf3 {[%emt 0:00:00]} c6 {[%emt 0:03:00]} 5. e3 {[%emt 0:00:00]} Be7 {[%emt 0:01:30]} 6. Ne5 {[%emt 0:00:30] [#] D00: 1 d4 d5: Unusual lines.} Qb6 $146 {[%emt 0:06:30]} ({Predecessor:} 6... Nbd7 7. Nd3 b6 8. g4 h6 9. Qf3 Bb7 10. O-O-O a5 {1-0 Richards,H (2146)-Molina,J (1889) Olympiad Women-44 2022 (9.3)}) 7. a3 {[%emt 0:02:30]} Nbd7 {[%emt 0:00:30]} 8. Be2 {[%emt 0:07:30] The position is equal.} Nf8 {[%emt 0:02:30]} (8... Qxb2 $2 9. Na4 Bb4+ 10. Kf1 $18) 9. O-O {[%emt 0:06:30]} Ng6 {[%emt 0:01:30]} 10. Bg3 {[%emt 0:00:30]} Bd7 {[%emt 0:01:30]} (10... Qxb2 $2 11. Na4 $18) 11. h3 {[%emt 0:17:30]} a6 {[%emt 0:05:30]} 12. b4 {[%emt 0:03:30]} O-O {[%emt 0:04:30]} 13. Na4 {[%emt 0:08:30]} Qd8 {[%emt 0:04:30]} 14. Bd3 {[%emt 0:07:30]} Bc8 {[%emt 0:06:30]} 15. Nb2 {[%emt 0:13:30]} a5 {[%emt 0:08:30]} 16. c3 {[%emt 0:00:30]} Bd6 {[%emt 0:07:30]} 17. f4 {[%emt 0:03:30]} Ne7 {[%emt 0:00:30]} 18. Bf2 {[%emt 0:00:30]} b6 {[%emt 0:01:30]} 19. Bh4 {[%emt 0:03:30]} Nf5 {[%emt 0:14:30]} (19... axb4 $11 20. cxb4 c5) 20. Bxf5 {[%emt 0:01:30]} exf5 {[%emt 0:00:00]} 21. Qc2 {[%emt 0:11:43]} (21. Nxc6 $14 Qc7 22. b5) 21... Qe8 $15 {[%emt 0:04:00]} 22. Bxf6 {[%emt 0:01:57]} gxf6 {[%emt 0:00:30]} 23. Ned3 {[%emt 0:01:35]} Qxe3+ {[%emt 0:03:30]} 24. Kh1 {[%emt 0:00:30]} axb4 {[%emt 0:00:30]} 25. Rae1 {[%emt 0:00:30]} Qg3 {[%emt 0:01:30]} 26. axb4 {[%emt 0:01:38]} Bd7 {[%emt 0:00:00] Black has more active pieces.} (26... Kh8 $15) 27. Rf3 {[%emt 0:01:15]} Qh4 {[%emt 0:00:00]} 28. Kh2 {[%emt 0:00:00]} Rfe8 {[%emt 0:00:30]} (28... Be6 $15) 29. g3 {[%emt 0:00:23]} (29. Rxe8+ $1 $14 Rxe8 30. Qa4) 29... Qh6 {[%emt 0:00:30]} 30. Rfe3 {[%emt 0:00:00]} Qf8 {[%emt 0:00:30]} 31. Qd1 {[%emt 0:02:43]} ({White should play} 31. Rxe8 $15 Rxe8 32. Rxe8 Qxe8 33. Nd1) 31... Re4 $17 {[%emt 0:00:30]} 32. Nf2 {[%emt 0:00:16]} Re6 {[%emt 0:01:30]} 33. Nbd3 {[%emt 0:01:18]} Rae8 {[%emt 0:02:34]} 34. Qd2 {[%emt 0:00:30]} c5 {[%emt 0:00:30]} (34... Kg7 $17 35. Kg2 c5 36. bxc5 bxc5 37. dxc5 Bxc5 38. Nxc5 Qxc5 39. Rxe6 Rxe6 40. Rxe6 fxe6) 35. bxc5 {[%emt 0:00:30]} bxc5 {[%emt 0:00:30]} 36. dxc5 {[%emt 0:00:30]} Bxc5 {[%emt 0:00:30]} 37. Nxc5 {[%emt 0:00:30]} Qxc5 {[%emt 0:00:30]} 38. Nd1 {[%emt 0:00:30]} (38. Rxe6 $15 Rxe6 39. Rd1) 38... Re4 {[%emt 0:00:30] White is weak on the light squares} (38... Ra8 $17 {Hoping for ...Ra1.} 39. R3e2 Ra3) 39. h4 {[%emt 0:00:52]} (39. Rxe4 $1 $11 Rxe4 40. Rxe4 fxe4 41. Ne3) 39... Ba4 {[%emt 0:05:47]} ({Black should try} 39... R4e6 $17 40. Kh3 h6) 40. Rxe4 $11 {[%emt 0:00:12]} Rxe4 {[%emt 0:01:19]} 41. Rxe4 {[%emt 0:00:30]} fxe4 {[%emt 0:00:30][%mdl 4096] Endgame KQB-KQN} 42. Ne3 {[%emt 0:00:30]} Bb3 {[%emt 0:00:30]} 43. Qd4 {[%emt 0:00:30]} Qxd4 {[%emt 0:00:30]} 44. cxd4 {[%emt 0:00:30] KB-KN} Kf8 {[%emt 0:00:30]} 45. Kg2 {[%emt 0:00:30]} Ke7 {[%emt 0:00:30]} 46. Kf2 {[%emt 0:00:30]} Kd6 {[%emt 0:00:30]} 47. Nf5+ {[%emt 0:00:00]} Ke6 {[%emt 0:04:25]} 48. Ng7+ {[%emt 0:00:00]} Kd7 {[%emt 0:00:30]} 49. Ke3 {[%emt 0:00:00]} Bd1 {[%emt 0:00:00] [#] Threatens to win with ...Bg4.} 50. Nf5 {[%emt 0:03:05]} Bg4 {[%emt 0:03:07]} (50... Ke6 $5 51. Ng7+ $8 Ke7 52. Nf5+ Ke8 $11) 51. Nh6 {[%emt 0:00:37][%csl LRf7,LRg4]} Bh3 {[%emt 0:00:11]} 52. Ng8 $2 {[%emt 0:00:30]} (52. f5 $11) 52... Ke6 $19 {[%emt 0:00:00] And now ...f5 would win.} 53. Nh6 {[%emt 0:02:27] [#]} (53. f5+ $19 Bxf5 54. Nh6) 53... f5 {[%emt 0:00:22] Black mates.} 54. g4 {[%emt 0:00:30]} Bxg4 {[%emt 0:00:30]} 55. Kf2 {[%emt 0:00:30]} f6 {[%emt 0:00:30][%cal Bf7f6,Bf6f5][%mdl 32]} 56. Kg3 {[%emt 0:00:30]} Ke7 {[%emt 0:00:30]} 57. Nxg4 {[%emt 0:00:30]} fxg4 {[%emt 0:00:30]} 58. Kxg4 {[%emt 0:00:30]} Kd6 {[%emt 0:00:30]} 59. h5 {[%emt 0:00:30]} Ke6 {[%emt 0:00:30]} 60. h6 {[%emt 0:00:30]} f5+ {[%emt 0:00:30]} 61. Kg3 {[%emt 0:00:30]} Kf6 {[%emt 0:00:00] Weighted Error Value: White=0.32/Black=0.19 (very precise)} 0-1

[Event "TUR-ch U13-18 Open 2023"]
[Site "Antalya"]
[Date "2023.01.23"]
[Round "3"]
[White "Sabuncuogullari, Emre"]
[Black "Kara, Goktan Can"]
[Result "0-1"]
[ECO "C47"]
[WhiteElo "1484"]
[BlackElo "1755"]
[Annotator "NA RC COMBH"]
[PlyCount "158"]
[EventDate "2023.01.17"]
[EventType "swiss"]
[EventCountry "TUR"]
[SourceTitle "playchess.com"]
[Source "ChessBase"]
[SourceQuality "1"]
[TimeControl "5400+30"]

1. e4 {[%emt 0:01:00]} e5 {[%emt 0:01:00]} 2. Nf3 {[%emt 0:00:30]} Nc6 {[%emt 0:00:00]} 3. Nc3 {[%emt 0:02:30]} Nf6 {[%emt 0:00:00]} 4. d4 {[%emt 0:00:30]} exd4 {[%emt 0:00:30]} 5. Nxd4 {[%emt 0:00:30]} Bb4 {[%emt 0:00:30]} 6. Nxc6 {[%emt 0:00:30]} bxc6 {[%emt 0:00:30]} 7. Bd3 {[%emt 0:00:30]} d5 {[%emt 0:00:30]} 8. exd5 {[%emt 0:00:30]} cxd5 {[%emt 0:00:30]} 9. O-O {[%emt 0:00:30]} O-O {[%emt 0:00:30]} 10. h3 {[%emt 0:00:30]} c6 {[%emt 0:00:30]} 11. Qf3 {[%emt 0:00:30]} Be6 {[%emt 0:00:30]} 12. Bf4 {[%emt 0:00:30]} Bd6 {[%emt 0:00:30]} 13. Ne2 {[%emt 0:00:30]} Rb8 {[%emt 0:00:30]} 14. b3 {[%emt 0:00:30]} Qc7 {[%emt 0:00:30]} 15. Bxd6 {[%emt 0:09:30]} Qxd6 {[%emt 0:00:30]} 16. c3 {[%emt 0:01:30]} Nd7 {[%emt 0:03:30]} 17. Bc2 {[%emt 0:02:30]} a5 {[%emt 0:08:30]} 18. Rad1 {[%emt 0:05:30]} Ne5 {[%emt 0:06:30]} 19. Qg3 {[%emt 0:05:30]} f5 {[%emt 0:01:30]} 20. Nf4 {[%emt 0:06:30]} Nf7 {[%emt 0:03:30]} 21. Rfe1 {[%emt 0:06:30]} Bc8 {[%emt 0:04:30]} 22. c4 {[%emt 0:18:30]} d4 {[%emt 0:01:30]} 23. c5 {[%emt 0:05:30]} Qc7 {[%emt 0:08:30]} 24. Rxd4 {[%emt 0:00:30]} Rb5 {[%emt 0:04:30]} 25. Bd3 {[%emt 0:08:30]} Rxc5 {[%emt 0:05:30]} 26. Bc4 {[%emt 0:01:30]} Re5 {[%emt 0:06:30]} 27. Red1 {[%emt 0:01:30]} Ree8 {[%emt 0:03:30]} 28. Qh4 {[%emt 0:12:11]} Re7 {[%emt 0:03:30]} 29. Qh5 {[%emt 0:03:54]} Rfe8 {[%emt 0:01:30]} 30. Nd3 {[%emt 0:01:26]} g6 {[%emt 0:02:30]} 31. Qf3 {[%emt 0:00:32]} c5 {[%emt 0:03:30]} 32. Bxf7+ {[%emt 0:00:58]} Rxf7 {[%emt 0:05:30]} 33. Rc4 {[%emt 0:00:50]} Bb7 {[%emt 0:03:30]} 34. Qf4 {[%emt 0:00:25]} Rd8 {[%emt 0:02:30]} 35. Qxc7 {[%emt 0:01:10]} Rxc7 {[%emt 0:00:30]} 36. Nb2 {[%emt 0:00:12]} Rxd1+ {[%emt 0:06:33]} 37. Nxd1 {[%emt 0:00:30]} Be4 {[%emt 0:00:30]} 38. Nc3 {[%emt 0:00:30]} Bd3 {[%emt 0:00:30]} 39. Ra4 {[%emt 0:00:30]} c4 {[%emt 0:00:30]} 40. bxc4 {[%emt 0:00:30]} Rxc4 {[%emt 0:00:30]} 41. Rxc4 {[%emt 0:00:30]} Bxc4 {[%emt 0:00:30]} 42. f4 {[%emt 0:00:30]} Kf7 {[%emt 0:00:30]} 43. Kf2 {[%emt 0:00:30]} Ke6 {[%emt 0:00:30]} 44. g3 {[%emt 0:00:30]} Kd6 {[%emt 0:00:30]} 45. a3 {[%emt 0:00:30]} Kc5 {[%emt 0:00:30]} 46. Ke3 {[%emt 0:01:04]} Bf1 {[%emt 0:05:37]} 47. h4 {[%emt 0:00:30]} Kc4 {[%emt 0:00:06]} 48. Kd2 {[%emt 0:00:07]} Kb3 {[%emt 0:02:08]} 49. Nd5 {[%emt 0:00:00]} Kxa3 {[%emt 0:03:46]} 50. Kc3 {[%emt 0:00:19]} Bg2 {[%emt 0:01:01]} 51. Nf6 {[%emt 0:01:31]} h5 {[%emt 0:00:30]} 52. Nd7 {[%emt 0:00:00]} Ka4 {[%emt 0:01:37]} 53. Ne5 {[%emt 0:00:11]} Kb5 {[%emt 0:00:33]} 54. Nxg6 {[%emt 0:00:00]} Kc5 {[%emt 0:00:28]} 55. Ne7 {[%emt 0:00:54]} Be4 {[%emt 0:00:48]} 56. Ng8 {[%emt 0:01:14]} a4 {[%emt 0:01:46]} 57. Nf6 {[%emt 0:00:47]} Bf3 {[%emt 0:00:09]} 58. Ng8 {[%emt 0:02:25]} a3 {[%emt 0:01:20]} 59. Nh6 {[%emt 0:00:49]} Be4 {[%emt 0:00:09]} 60. Ng8 {[%emt 0:00:48]} a2 {[%emt 0:00:30]} 61. Kb2 {[%emt 0:00:30]} Kd4 {[%emt 0:00:30]} 62. Nf6 {[%emt 0:00:00]} Bf3 {[%emt 0:00:00]} 63. Kxa2 {[%emt 0:00:00]} Ke3 {[%emt 0:00:00]} 64. Nd7 {[%emt 0:01:12]} Kf2 {[%emt 0:00:06]} 65. Kb2 {[%emt 0:00:30]} Kxg3 {[%emt 0:00:30]} 66. Kc3 {[%emt 0:00:03]} Kxh4 {[%emt 0:00:25]} 67. Kd2 {[%emt 0:00:30]} Kg3 {[%emt 0:00:30]} 68. Ke3 {[%emt 0:00:30]} h4 {[%emt 0:00:30]} 69. Ne5 {[%emt 0:00:00]} Be4 {[%emt 0:00:00]} 70. Nc4 {[%emt 0:00:33]} h3 {[%emt 0:00:25]} 71. Nd2 {[%emt 0:00:02]} Bg2 {[%emt 0:00:02]} 72. Ke2 {[%emt 0:01:20]} h2 {[%emt 0:00:30]} 73. Nf1+ {[%emt 0:00:00]} Bxf1+ {[%emt 0:00:00]} 74. Kxf1 {[%emt 0:00:00]} h1=Q+ {[%emt 0:00:02]} 75. Ke2 {[%emt 0:00:00]} Qd5 {[%emt 0:00:30]} 76. Ke3 {[%emt 0:00:15]} Qd6 {[%emt 0:00:30]} 77. Ke2 {[%emt 0:00:00]} Qd4 {[%emt 0:00:05]} 78. Ke1 {[%emt 0:00:07]} Kf3 {[%emt 0:00:30]} 79. Kf1 {[%emt 0:00:30]} Qd1# {[%emt 0:00:00]} 0-1